fUSD/lending_fUSD_20260624
["ID","MTS","AMOUNT","RATE_DAILY","PERIOD"]
[426312041,1782279036000,-50000.0,0.0002,2]
[426312042,1782279036000,-372.0,0.0002,2]
[426312044,1782279036000,-636.0,0.0002,2]
[426312046,1782279036000,-1585.0,0.0002,2]
[426312045,1782279036000,-151.0,0.0002,2]
[426312049,1782279036000,-265.0,0.0002,2]
[426312052,1782279036000,-410.0,0.0002005,2]
[426312053,1782279036000,-500.0,0.00020082,2]
[426312050,1782279036000,-313.0,0.0002005,2]
[426311995,1782279036000,-155.32552995,0.000196,2]
[426312038,1782279036000,-675.0,0.0002,2]
[426312023,1782279036000,-696.85417972,0.00019981,2]
[426312039,1782279036000,-152.0,0.0002,2]
[426312019,1782279036000,-201.93286098,0.00019981,2]
[426312018,1782279036000,-2005.9555727,0.00019981,2]
[426311991,1782279036000,-155.32552989,0.00019545,2]
[426311992,1782279036000,-151.0,0.00019545,2]
[426311990,1782279036000,-151.0,0.0001949,2]
[426311988,1782279036000,-155.32552989,0.0001949,2]
[426311996,1782279036000,-151.0,0.000196,2]
[426311999,1782279036000,-150.0,0.00019726,2]
[426311997,1782279036000,-151.0,0.000196,2]
[426312001,1782279036000,-150.0,0.00019726,2]
[426312003,1782279036000,-500.0,0.00019799,2]
[426312002,1782279036000,-270.87512819,0.00019726,2]
[426312006,1782279036000,-500.0,0.00019799,2]
[426312009,1782279036000,-10023.56750253,0.000198,2]
[426312008,1782279036000,-500.0,0.00019799,2]
[426312000,1782279036000,-150.0,0.00019726,2]
[426312007,1782279036000,-500.0,0.00019799,2]
[426312016,1782279036000,-200.0,0.00019981,2]
[426311998,1782279036000,-2724.51307262,0.00019707,2]
[426312020,1782279036000,-151.0,0.00019981,2]
[426312017,1782279036000,-187.78006524,0.00019981,2]
[426312051,1782279036000,-310.0,0.0002005,2]
[426312015,1782279036000,-151.0,0.00019981,2]
[426312013,1782279036000,-33326.4581,0.000199,2]
[426312012,1782279036000,-500.0,0.00019899,2]
[426312010,1782279036000,-522.242,0.00019808,2]
[426312021,1782279036000,-537.6845,0.00019981,2]
[426312011,1782279036000,-160.84595224,0.00019873,2]
[426312004,1782279036000,-500.0,0.00019799,2]
[426312005,1782279036000,-500.0,0.00019799,2]
[426312022,1782279036000,-201.93286098,0.00019981,2]
[426312074,1782279037000,-200.0,0.00020529,2]
[426312076,1782279037000,-2080.17592889,0.00020529,2]
[426312077,1782279037000,-209.40437684,0.00020529,2]
[426312075,1782279037000,-194.72792766,0.00020529,2]
[426312081,1782279037000,-209.40437684,0.00020529,2]
[426312085,1782279037000,-9552.16786547,0.00020529,2]
[426312079,1782279037000,-120.13928399,0.00020529,2]
[426312097,1782279037000,-500.0,0.0002063,2]
[426312083,1782279037000,-157.72012091,0.00020529,2]
[426312078,1782279037000,-30.86071601,0.00020529,2]
[426312080,1782279037000,-292.91239367,0.00020529,2]
[426312082,1782279037000,-696.85417972,0.00020529,2]
[426312087,1782279037000,-819.57960908,0.00020529,2]
[426312073,1782279037000,-151.0,0.00020529,2]
[426312098,1782279037000,-921.0,0.0002063,2]
[426312084,1782279037000,-2724.51307262,0.00020529,2]
[426312070,1782279037000,-990.04022754,0.000204,2]
[426312059,1782279037000,-919.45802507,0.00020143,2]
[426312072,1782279037000,-10023.56750253,0.000204,2]
[426312086,1782279037000,-209.40437684,0.00020529,2]
[426312054,1782279037000,-500.0,0.00020082,2]
[426312055,1782279037000,-500.0,0.00020082,2]
[426312056,1782279037000,-500.0,0.00020082,2]
[426312057,1782279037000,-921.0,0.00020082,2]
[426312058,1782279037000,-251.0,0.00020089,2]
[426312060,1782279037000,-990.04022754,0.000202,2]
[426312067,1782279037000,-500.0,0.00020356,2]
[426312061,1782279037000,-221.02990614,0.000202,2]
[426312063,1782279037000,-194.72792766,0.00020254,2]
[426312062,1782279037000,-10023.56750253,0.000202,2]
[426312068,1782279037000,-500.0,0.00020356,2]
[426312066,1782279037000,-500.0,0.00020356,2]
[426312069,1782279037000,-875.6,0.00020381,2]
[426312065,1782279037000,-790.08920756,0.00020274,2]
[426312071,1782279037000,-221.02990614,0.000204,2]
[426312064,1782279037000,-2724.51307262,0.00020255,2]
[426312088,1782279037000,-209.40437684,0.00020529,2]
[426312103,1782279037000,-990.04022754,0.000208,2]
[426312089,1782279037000,-187.68979449,0.0002058,2]
[426312114,1782279037000,-338.0,0.00021,2]
[426312115,1782279037000,-305.24040265,0.00021,2]
[426312116,1782279037000,-46.75959735,0.00021,2]
[426312117,1782279037000,-11891.9473348,0.00021,2]
[426312119,1782279037000,-675.0,0.00021,2]
[426312122,1782279037000,-524.58519231,0.00021,2]
[426312120,1782279037000,-152.0,0.00021,2]
[426312113,1782279037000,-1810.75711064,0.00021,2]
[426312118,1782279037000,-1685.0,0.00021,2]
[426312123,1782279037000,-591.20270258,0.00021,2]
[426312125,1782279037000,-705.77298119,0.00021,2]
[426312124,1782279037000,-372.0,0.00021,2]
[426312127,1782279037000,-11217.54884786,0.00021,2]
[426312126,1782279037000,-3076.67817095,0.00021,2]
[426312128,1782279037000,-6111.0,0.00021,2]
[426312094,1782279037000,-785.0,0.00020606,2]
[426312121,1782279037000,-48884.21210511,0.00021,2]
[426312107,1782279037000,-1312.0,0.00020856,5]
[426312112,1782279037000,-500.0,0.00020999,2]
[426312106,1782279037000,-2724.51307262,0.00020803,2]
[426312091,1782279037000,-221.02990614,0.000206,2]
[426312090,1782279037000,-990.04022754,0.000206,2]
[426312092,1782279037000,-10023.56750253,0.000206,2]
[426312093,1782279037000,-636.0,0.00020606,2]
[426312096,1782279037000,-500.0,0.0002063,2]
[426312095,1782279037000,-500.0,0.0002063,2]
[426312110,1782279037000,-1000.0,0.000209,2]
[426312101,1782279037000,-473.16,0.00020714,2]
[426312099,1782279037000,-543.97,0.00020714,2]
[426312100,1782279037000,-500.0,0.00020714,2]
[426312111,1782279037000,-785.0,0.00020939,2]
[426312129,1782279037000,-11079.6104607,0.00021,2]
[426312108,1782279037000,-316.0,0.000209,2]
[426312105,1782279037000,-10023.56750253,0.000208,2]
[426312104,1782279037000,-221.02990614,0.000208,2]
[426312109,1782279037000,-310.0,0.000209,2]
[426312102,1782279037000,-251.0,0.00020774,2]
[426312137,1782279038000,-360.55276861,0.00016438,2]
[426312134,1782279038000,-64.3436377,0.00016146,2]
[426312135,1782279038000,-500.0,0.00016438,2]
[426312136,1782279038000,-139.44723139,0.00016438,2]
[426312133,1782279038000,-870.6563623,0.00016146,2]
[426312140,1782279038000,-500.0,0.00016438,2]
[426312144,1782279038000,-500.0,0.00016438,2]
[426312138,1782279038000,-500.0,0.00016438,2]
[426312142,1782279038000,-500.0,0.00016438,2]
[426312141,1782279038000,-500.0,0.00016438,2]
[426312143,1782279038000,-500.0,0.00016438,2]
[426312145,1782279038000,-500.0,0.00016438,2]
[426312146,1782279038000,-500.0,0.00016438,2]
[426312139,1782279038000,-500.0,0.00016438,2]
[426312148,1782279039000,-500.0,0.00016438,2]
[426312147,1782279039000,-500.0,0.00016438,2]
[426312150,1782279039000,-500.0,0.00016438,2]
[426312154,1782279039000,-500.0,0.00016438,2]
[426312152,1782279039000,-500.0,0.00016438,2]
[426312153,1782279039000,-500.0,0.00016438,2]
[426312151,1782279039000,-500.0,0.00016438,2]
[426312155,1782279039000,-500.0,0.00016438,2]
[426312149,1782279039000,-500.0,0.00016438,2]
[426312157,1782279039000,-500.0,0.00016438,2]
[426312159,1782279039000,-283.38264527,0.00016438,2]
[426312158,1782279039000,-500.0,0.00016438,2]
[426312156,1782279039000,-500.0,0.00016438,2]
[426312190,1782279040000,-1397.0,0.0001905,2]
[426312177,1782279040000,-500.0,0.00016438,2]
[426312176,1782279040000,-500.0,0.00016438,2]
[426312174,1782279040000,-500.0,0.00016438,2]
[426312172,1782279040000,-419.79052151,0.00016438,2]
[426312173,1782279040000,-500.0,0.00016438,2]
[426312178,1782279040000,-500.0,0.00016438,2]
[426312170,1782279040000,-216.61735473,0.00016438,2]
[426312175,1782279040000,-500.0,0.00016438,2]
[426312183,1782279040000,-500.0,0.00016438,2]
[426312171,1782279040000,-80.20947849,0.00016438,2]
[426312184,1782279040000,-500.0,0.00016438,2]
[426312185,1782279040000,-500.0,0.00016438,2]
[426312182,1782279040000,-500.0,0.00016438,2]
[426312180,1782279040000,-500.0,0.00016438,2]
[426312186,1782279040000,-500.0,0.00016438,2]
[426312187,1782279040000,-500.0,0.00016438,2]
[426312188,1782279040000,-500.0,0.00016438,2]
[426312189,1782279040000,-1397.0,0.0001805,2]
[426312181,1782279040000,-500.0,0.00016438,2]
[426312191,1782279040000,-935.0,0.00019146,2]
[426312179,1782279040000,-500.0,0.00016438,2]
[426312230,1782279041000,-251.0,0.00021459,2]
[426312238,1782279041000,-500.0,0.00021559,2]
[426312236,1782279041000,-405.89205777,0.00021559,2]
[426312234,1782279041000,-13632.99086796,0.00021524,2]
[426312237,1782279041000,-500.0,0.00021559,2]
[426312225,1782279041000,-2724.51307262,0.00021351,2]
[426312233,1782279041000,-284.78,0.000215,7]
[426312223,1782279041000,-10023.56750253,0.000213,2]
[426312227,1782279041000,-500.0,0.00021356,7]
[426312224,1782279041000,-501.30500105,0.00021343,2]
[426312235,1782279041000,-500.0,0.00021559,2]
[426312228,1782279041000,-5483.38,0.0002137,2]
[426312252,1782279041000,-1373.0066011,0.00021593,2]
[426312231,1782279041000,-290.57236396,0.00021493,2]
[426312251,1782279041000,-20041.884207,0.00021593,2]
[426312240,1782279041000,-500.0,0.00021559,2]
[426312222,1782279041000,-785.0,0.00021271,2]
[426312250,1782279041000,-500.0,0.00021592,2]
[426312239,1782279041000,-500.0,0.00021559,2]
[426312241,1782279041000,-1031.04215841,0.0002156,5]
[426312243,1782279041000,-1082.91724271,0.0002156,5]
[426312246,1782279041000,-1032.08448462,0.0002156,5]
[426312242,1782279041000,-1006.75195063,0.0002156,5]
[426312244,1782279041000,-1102.47965914,0.0002156,5]
[426312249,1782279041000,-1540.82082758,0.0002156,5]
[426312247,1782279041000,-1030.72866422,0.0002156,5]
[426312229,1782279041000,-1810.75711064,0.000214,2]
[426312220,1782279041000,-2000.0,0.00021261,2]
[426312226,1782279041000,-536.43854175,0.00021356,7]
[426312215,1782279041000,-919.45802507,0.00021094,2]
[426312192,1782279041000,-1397.0,0.0002005,2]
[426312202,1782279041000,-200.0,0.00021077,2]
[426312194,1782279041000,-512.0,0.00021,2]
[426312196,1782279041000,-1585.0,0.00021,2]
[426312195,1782279041000,-151.0,0.00021,2]
[426312193,1782279041000,-31.3895393,0.00021,2]
[426312198,1782279041000,-319.0,0.00021,2]
[426312199,1782279041000,-265.0,0.00021,2]
[426312197,1782279041000,-2364.0,0.00021,2]
[426312200,1782279041000,-1397.0,0.0002105,2]
[426312201,1782279041000,-151.0,0.00021077,2]
[426312203,1782279041000,-201.93286098,0.00021077,2]
[426312206,1782279041000,-151.0,0.00021077,2]
[426312221,1782279041000,-500.0,0.00021261,2]
[426312214,1782279041000,-819.57960908,0.00021077,2]
[426312205,1782279041000,-217.15233878,0.00021077,2]
[426312204,1782279041000,-2157.14243826,0.00021077,2]
[426312210,1782279041000,-2724.51307262,0.00021077,2]
[426312208,1782279041000,-696.85417972,0.00021077,2]
[426312213,1782279041000,-217.15233878,0.00021077,2]
[426312207,1782279041000,-217.15233878,0.00021077,2]
[426312212,1782279041000,-217.15233878,0.00021077,2]
[426312211,1782279041000,-9905.59807649,0.00021077,2]
[426312216,1782279041000,-10023.56750253,0.000211,2]
[426312219,1782279041000,-396.32,0.00021231,2]
[426312253,1782279041000,-1469.7368787,0.00021593,2]
[426312218,1782279041000,-636.0,0.00021212,3]
[426312217,1782279041000,-1810.75711064,0.000212,2]
[426312209,1782279041000,-157.72012091,0.00021077,2]
[426312258,1782279041000,-237.3433318,0.00021593,2]
[426312232,1782279041000,-10023.56750253,0.000215,2]
[426312257,1782279041000,-176744.0699771,0.00021593,2]
[426312286,1782279041000,-500.0,0.000217,3]
[426312289,1782279041000,-1164.24,0.000217,2]
[426312287,1782279041000,-500.0,0.000217,3]
[426312295,1782279041000,-500.0,0.00021705,2]
[426312294,1782279041000,-500.0,0.00021705,2]
[426312305,1782279041000,-350.0,0.00021885,4]
[426312306,1782279041000,-2724.51307262,0.00021899,2]
[426312301,1782279041000,-45000.0,0.00021705,2]
[426312297,1782279041000,-500.0,0.00021705,2]
[426312296,1782279041000,-500.0,0.00021705,2]
[426312299,1782279041000,-500.0,0.00021705,2]
[426312302,1782279041000,-636.0,0.00021818,3]
[426312300,1782279041000,-220.23601146,0.00021705,2]
[426312303,1782279041000,-500.0,0.00021836,2]
[426312304,1782279041000,-224.15,0.0002185,2]
[426312307,1782279041000,-1810.75711064,0.000219,2]
[426312309,1782279041000,-159.8758717,0.000219,2]
[426312310,1782279041000,-609.1802455,0.00021917,2]
[426312311,1782279041000,-5000.0,0.00021918,2]
[426312314,1782279041000,-166.0,0.00021918,2]
[426312317,1782279041000,-500.0,0.00021918,8]
[426312315,1782279041000,-500.0,0.00021918,8]
[426312312,1782279041000,-241.71,0.00021918,2]
[426312313,1782279041000,-166.0,0.00021918,2]
[426312308,1782279041000,-10023.56750253,0.000219,2]
[426312316,1782279041000,-500.0,0.00021918,8]
[426312256,1782279041000,-1933.3113545,0.00021593,2]
[426312290,1782279041000,-1250.38,0.000217,2]
[426312291,1782279041000,-500.0,0.000217,3]
[426312298,1782279041000,-500.0,0.00021705,2]
[426312293,1782279041000,-500.0,0.00021705,2]
[426312283,1782279041000,-500.0,0.000217,3]
[426312259,1782279041000,-1810.75711064,0.000216,2]
[426312260,1782279041000,-235.3441994,0.00021623,2]
[426312261,1782279041000,-599.60298507,0.00021624,2]
[426312265,1782279041000,-200.0,0.00021625,2]
[426312262,1782279041000,-670.58624095,0.00021624,2]
[426312264,1782279041000,-151.0,0.00021625,2]
[426312266,1782279041000,-209.40437684,0.00021625,2]
[426312278,1782279041000,-306.29,0.00021644,4]
[426312277,1782279041000,-819.57960908,0.00021625,2]
[426312268,1782279041000,-225.18697532,0.00021625,2]
[426312276,1782279041000,-325.77308864,0.00021625,2]
[426312279,1782279041000,-10023.56750253,0.000217,2]
[426312267,1782279041000,-2236.95670847,0.00021625,2]
[426312254,1782279041000,-53660.8046481,0.00021593,2]
[426312273,1782279041000,-2724.51307262,0.00021625,2]
[426312269,1782279041000,-151.0,0.00021625,2]
[426312284,1782279041000,-500.0,0.000217,3]
[426312292,1782279041000,-179.07,0.000217,3]
[426312285,1782279041000,-500.0,0.000217,3]
[426312281,1782279041000,-500.0,0.000217,3]
[426312288,1782279041000,-1072.35,0.000217,2]
[426312282,1782279041000,-500.0,0.000217,3]
[426312272,1782279041000,-696.85417972,0.00021625,2]
[426312275,1782279041000,-369.11994218,0.00021625,2]
[426312274,1782279041000,-10272.10520532,0.00021625,2]
[426312270,1782279041000,-225.18697532,0.00021625,2]
[426312271,1782279041000,-157.72012091,0.00021625,2]
[426312280,1782279041000,-216.42324807,0.000217,3]
[426312363,1782279042000,-152.0,0.00022,2]
[426312368,1782279042000,-512.0,0.00022,2]
[426312361,1782279042000,-1685.0,0.00022,2]
[426312353,1782279042000,-50000.0,0.00022,5]
[426312359,1782279042000,-2699.28,0.00022,2]
[426312349,1782279042000,-50000.0,0.00022,5]
[426312356,1782279042000,-216.42324807,0.00022,7]
[426312350,1782279042000,-50000.0,0.00022,7]
[426312347,1782279042000,-818.19788804,0.00022,7]
[426312351,1782279042000,-50000.0,0.00022,5]
[426312367,1782279042000,-200.0,0.00022,10]
[426312358,1782279042000,-352.0,0.00022,2]
[426312360,1782279042000,-11399.56,0.00022,2]
[426312369,1782279042000,-1452.0,0.00022,2]
[426312357,1782279042000,-338.0,0.00022,2]
[426312377,1782279042000,-265.0,0.00022,2]
[426312365,1782279042000,-50000.0,0.00022,2]
[426312364,1782279042000,-5368.5,0.00022,7]
[426312370,1782279042000,-151.0,0.00022,2]
[426312381,1782279042000,-150.0,0.0002202,2]
[426312380,1782279042000,-289.65427401,0.00022,2]
[426312371,1782279042000,-1585.0,0.00022,2]
[426312372,1782279042000,-1624.92889821,0.00022,2]
[426312373,1782279042000,-2000.0,0.00022,2]
[426312374,1782279042000,-2364.0,0.00022,2]
[426312375,1782279042000,-319.0,0.00022,2]
[426312348,1782279042000,-70048.2890666,0.00022,2]
[426312366,1782279042000,-372.0,0.00022,2]
[426312352,1782279042000,-50000.0,0.00022,7]
[426312319,1782279042000,-500.0,0.00021918,8]
[426312355,1782279042000,-3107.11,0.00022,5]
[426312329,1782279042000,-500.0,0.00021918,8]
[426312330,1782279042000,-500.0,0.00021918,8]
[426312321,1782279042000,-500.0,0.00021918,8]
[426312327,1782279042000,-500.0,0.00021918,8]
[426312320,1782279042000,-500.0,0.00021918,8]
[426312323,1782279042000,-500.0,0.00021918,8]
[426312322,1782279042000,-500.0,0.00021918,8]
[426312318,1782279042000,-500.0,0.00021918,8]
[426312325,1782279042000,-500.0,0.00021918,8]
[426312324,1782279042000,-500.0,0.00021918,8]
[426312328,1782279042000,-500.0,0.00021918,8]
[426312326,1782279042000,-500.0,0.00021918,8]
[426312331,1782279042000,-697.0,0.00021918,8]
[426312346,1782279042000,-5665.25912452,0.00022,4]
[426312332,1782279042000,-500.0,0.00021999,2]
[426312342,1782279042000,-160.93728019,0.00021999,14]
[426312335,1782279042000,-543.97,0.00021999,2]
[426312334,1782279042000,-543.97,0.00021999,2]
[426312337,1782279042000,-500.0,0.00021999,2]
[426312341,1782279042000,-500.0,0.00021999,2]
[426312340,1782279042000,-500.0,0.00021999,2]
[426312336,1782279042000,-500.0,0.00021999,2]
[426312339,1782279042000,-500.0,0.00021999,2]
[426312338,1782279042000,-150.0,0.00021999,20]
[426312344,1782279042000,-500.0,0.00021999,2]
[426312345,1782279042000,-181.3022814,0.00022,2]
[426312343,1782279042000,-500.0,0.00021999,2]
[426312354,1782279042000,-50000.0,0.00022,7]
[426312333,1782279042000,-371.64069087,0.00021999,2]
[426312379,1782279042000,-173.0,0.00022,2]
[426312362,1782279042000,-675.0,0.00022,2]
[426312376,1782279042000,-2135.46150936,0.00022,2]
[426312414,1782279042000,-459.44652615,0.0002219,2]
[426312415,1782279042000,-4117.78799788,0.00022222,2]
[426312412,1782279042000,-10652.17309792,0.00022173,2]
[426312419,1782279042000,-459.44652615,0.00022323,7]
[426312411,1782279042000,-2724.51307262,0.00022173,2]
[426312418,1782279042000,-10023.56750253,0.000223,2]
[426312421,1782279042000,-8409.0,0.00022345,3]
[426312431,1782279042000,-2005.43,0.00022466,2]
[426312420,1782279042000,-290.57236391,0.00022334,2]
[426312423,1782279042000,-1129.32,0.00022351,7]
[426312422,1782279042000,-1040.18,0.00022351,7]
[426312424,1782279042000,-1212.87,0.00022351,7]
[426312425,1782279042000,-875.6,0.00022353,2]
[426312416,1782279042000,-785.0,0.00022268,2]
[426312426,1782279042000,-636.0,0.00022424,4]
[426312428,1782279042000,-459.44652615,0.00022456,7]
[426312429,1782279042000,-1107.69,0.00022466,2]
[426312430,1782279042000,-1156.82,0.00022466,2]
[426312433,1782279042000,-226.0,0.00022539,2]
[426312432,1782279042000,-182.26888893,0.00022538,14]
[426312435,1782279042000,-459.44652615,0.00022588,7]
[426312437,1782279042000,-404.02,0.000226,14]
[426312439,1782279042000,-785.0,0.000226,2]
[426312434,1782279042000,-150.0,0.0002254,2]
[426312436,1782279042000,-10023.56750253,0.000226,2]
[426312441,1782279042000,-150.0,0.00022632,2]
[426312440,1782279042000,-171.43,0.00022603,2]
[426312378,1782279042000,-150.0,0.00022,2]
[426312427,1782279042000,-2724.51307262,0.00022447,2]
[426312413,1782279042000,-819.57960908,0.00022173,2]
[426312438,1782279042000,-854.35,0.000226,14]
[426312410,1782279042000,-696.85417972,0.00022173,2]
[426312417,1782279042000,-217.53777045,0.00022271,2]
[426312382,1782279042000,-185.23,0.00022044,2]
[426312384,1782279042000,-1397.0,0.0002205,2]
[426312383,1782279042000,-919.45802507,0.00022046,2]
[426312388,1782279042000,-1995.47586879,0.0002207,2]
[426312387,1782279042000,-601.88047036,0.0002207,2]
[426312389,1782279042000,-500.0,0.00022099,2]
[426312392,1782279042000,-500.0,0.00022099,2]
[426312390,1782279042000,-500.0,0.00022099,2]
[426312393,1782279042000,-530.12817331,0.000221,7]
[426312386,1782279042000,-669.0,0.00022058,7]
[426312391,1782279042000,-500.0,0.00022099,2]
[426312394,1782279042000,-10023.56750253,0.000221,2]
[426312396,1782279042000,-251.0,0.00022144,2]
[426312385,1782279042000,-459.44652615,0.00022058,2]
[426312397,1782279042000,-1361.0,0.00022146,2]
[426312395,1782279042000,-300.0,0.000221,10]
[426312405,1782279042000,-2319.72410669,0.00022173,2]
[426312403,1782279042000,-200.0,0.00022173,2]
[426312401,1782279042000,-935.0,0.00022146,2]
[426312402,1782279042000,-151.0,0.00022173,2]
[426312404,1782279042000,-217.15233878,0.00022173,2]
[426312399,1782279042000,-1229.0,0.00022146,2]
[426312407,1782279042000,-151.0,0.00022173,2]
[426312398,1782279042000,-1277.0,0.00022146,2]
[426312400,1782279042000,-3648.0,0.00022146,2]
[426312409,1782279042000,-157.72012091,0.00022173,2]
[426312408,1782279042000,-233.5188934,0.00022173,2]
[426312406,1782279042000,-233.5188934,0.00022173,2]
[426312478,1782279043000,-1000.0,0.0002297,2]
[426312470,1782279043000,-265.5,0.000229,2]
[426312483,1782279043000,-500.0,0.00022999,2]
[426312485,1782279043000,-500.0,0.00022999,2]
[426312472,1782279043000,-785.0,0.00022933,2]
[426312477,1782279043000,-500.0,0.0002297,2]
[426312475,1782279043000,-500.0,0.0002297,2]
[426312480,1782279043000,-2724.51307262,0.00022995,2]
[426312482,1782279043000,-500.0,0.00022999,2]
[426312473,1782279043000,-1000.0,0.0002297,2]
[426312484,1782279043000,-500.0,0.00022999,2]
[426312494,1782279043000,-352.0,0.00023,2]
[426312481,1782279043000,-919.45802507,0.00022997,2]
[426312492,1782279043000,-338.0,0.00023,2]
[426312490,1782279043000,-50000.0,0.00023,5]
[426312496,1782279043000,-1685.0,0.00023,2]
[426312495,1782279043000,-10023.56750253,0.00023,2]
[426312487,1782279043000,-50000.0,0.00023,7]
[426312499,1782279043000,-262.0,0.00023,2]
[426312501,1782279043000,-500.0,0.00023,3]
[426312497,1782279043000,-675.0,0.00023,2]
[426312498,1782279043000,-152.0,0.00023,2]
[426312469,1782279043000,-187.99856555,0.00022889,2]
[426312500,1782279043000,-500.0,0.00023,3]
[426312479,1782279043000,-459.44652615,0.00022987,14]
[426312466,1782279043000,-459.44652615,0.00022854,14]
[426312449,1782279043000,-41574.35,0.00022691,2]
[426312468,1782279043000,-299.29152967,0.00022888,14]
[426312502,1782279043000,-500.0,0.00023,3]
[426312442,1782279043000,-150.0,0.00022632,2]
[426312444,1782279043000,-150.0,0.00022632,2]
[426312454,1782279043000,-200.0,0.00022721,2]
[426312455,1782279043000,-225.18697532,0.00022721,2]
[426312456,1782279043000,-2405.55389863,0.00022721,2]
[426312447,1782279043000,-543.97,0.00022691,2]
[426312453,1782279043000,-151.0,0.00022721,2]
[426312448,1782279043000,-500.0,0.00022691,2]
[426312443,1782279043000,-150.0,0.00022632,2]
[426312445,1782279043000,-150.0,0.00022632,2]
[426312446,1782279043000,-152.0,0.00022648,3]
[426312450,1782279043000,-1111.39,0.00022691,2]
[426312451,1782279043000,-216.42324807,0.000227,7]
[426312452,1782279043000,-459.44652615,0.00022721,7]
[426312457,1782279043000,-242.15909246,0.00022721,2]
[426312458,1782279043000,-151.0,0.00022721,2]
[426312459,1782279043000,-242.15909246,0.00022721,2]
[426312471,1782279043000,-185.0,0.00022901,2]
[426312462,1782279043000,-2724.51307262,0.00022721,2]
[426312461,1782279043000,-696.85417972,0.00022721,2]
[426312460,1782279043000,-157.72012091,0.00022721,2]
[426312463,1782279043000,-902.31506208,0.00022721,2]
[426312465,1782279043000,-10023.56750253,0.000228,2]
[426312464,1782279043000,-819.57960908,0.00022721,2]
[426312467,1782279043000,-166.0,0.0002288,2]
[426312504,1782279043000,-500.0,0.00023,3]
[426312505,1782279043000,-372.0,0.00023,2]
[426312507,1782279043000,-512.0,0.00023,2]
[426312530,1782279043000,-12614.0,0.00023239,3]
[426312534,1782279043000,-785.0,0.00023265,2]
[426312536,1782279043000,-200.0,0.00023269,2]
[426312539,1782279043000,-251.11897888,0.00023269,2]
[426312544,1782279043000,-2724.51307262,0.00023269,2]
[426312542,1782279043000,-157.72012091,0.00023269,2]
[426312543,1782279043000,-696.85417972,0.00023269,2]
[426312545,1782279043000,-819.57960908,0.00023269,2]
[426312541,1782279043000,-251.11897888,0.00023269,2]
[426312547,1782279043000,-150.0,0.00023288,2]
[426312546,1782279043000,-208.0,0.00023288,7]
[426312540,1782279043000,-151.0,0.00023269,2]
[426312548,1782279043000,-150.0,0.00023288,2]
[426312549,1782279043000,-150.0,0.00023288,2]
[426312551,1782279043000,-150.0,0.00023288,2]
[426312550,1782279043000,-150.0,0.00023288,2]
[426312552,1782279043000,-150.0,0.00023288,2]
[426312554,1782279043000,-150.0,0.00023288,2]
[426312557,1782279043000,-150.0,0.00023288,2]
[426312560,1782279043000,-150.0,0.00023288,2]
[426312556,1782279043000,-150.0,0.00023288,2]
[426312553,1782279043000,-150.0,0.00023288,2]
[426312559,1782279043000,-150.0,0.00023288,2]
[426312558,1782279043000,-150.0,0.00023288,2]
[426312503,1782279043000,-500.0,0.00023,3]
[426312533,1782279043000,-298.5,0.00023263,2]
[426312532,1782279043000,-200.0,0.00023256,2]
[426312555,1782279043000,-150.0,0.00023288,2]